[Event "*** Titled Tuesday Blitz"]
[Site "Chess.com"]
[Date "2021.04.06"]
[Round "6"]
[White "ChronicUnhappiness"]
[Black "Ural_bogatyr"]
[Result "1/2-1/2"]
[WhiteElo "2322"]
[BlackElo "2458"]
[TimeControl "180+1"]
[EndTime "11:10:16 PDT"]
[Termination "Game drawn - insufficient material"]

1. c4 {[%clk 0:03:00.9]} 1... Nf6 {[%clk 0:02:57.5]} 2. Nf3 {[%clk 0:02:59.8]}
2... e6 {[%clk 0:02:57.8]} 3. d4 {[%clk 0:02:55.9]} 3... d5 {[%clk 0:02:58.1]}
4. Nc3 {[%clk 0:02:54.8]} 4... dxc4 {[%clk 0:02:58]} 5. e3 {[%clk 0:02:51.7]}
5... a6 {[%clk 0:02:57.9]} 6. Bxc4 {[%clk 0:02:51]} 6... b5 {[%clk 0:02:57.8]}
7. Bd3 {[%clk 0:02:50.1]} 7... Bb7 {[%clk 0:02:58.3]} 8. O-O {[%clk 0:02:49.7]}
8... c5 {[%clk 0:02:58.1]} 9. dxc5 {[%clk 0:02:47.8]} 9... Bxc5 {[%clk
0:02:55.6]} 10. Qc2 {[%clk 0:02:35.1]} 10... Nbd7 {[%clk 0:02:54.2]} 11. Ne4
{[%clk 0:02:34]} 11... Nxe4 {[%clk 0:02:51.5]} 12. Bxe4 {[%clk 0:02:33.5]} 12...
Qb6 {[%clk 0:02:44]} 13. Bxb7 {[%clk 0:02:28.8]} 13... Qxb7 {[%clk 0:02:44.9]}
14. Rd1 {[%clk 0:02:27.3]} 14... O-O-O {[%clk 0:02:34.6]} 15. Rxd7 {[%clk
0:02:18.4]} 15... Rxd7 {[%clk 0:02:33.6]} 16. Qxc5+ {[%clk 0:02:17.2]} 16... Kb8
{[%clk 0:02:33.6]} 17. Bd2 {[%clk 0:02:12.7]} 17... Rc8 {[%clk 0:02:21.5]} 18.
Qe5+ {[%clk 0:02:05.2]} 18... Ka8 {[%clk 0:02:20.6]} 19. Bc3 {[%clk 0:01:51.1]}
19... Rcd8 {[%clk 0:02:15]} 20. h3 {[%clk 0:01:45.5]} 20... Rd5 {[%clk
0:02:11.6]} 21. Qxg7 {[%clk 0:01:41.4]} 21... R5d7 {[%clk 0:01:42.9]} 22. Bf6
{[%clk 0:01:35.3]} 22... Rc8 {[%clk 0:01:26.6]} 23. Qxh7 {[%clk 0:01:34.4]}
23... Qd5 {[%clk 0:01:14.7]} 24. Qh4 {[%clk 0:01:26.5]} 24... Rdc7 {[%clk
0:01:06.9]} 25. Qf4 {[%clk 0:01:24.9]} 25... Rc4 {[%clk 0:00:57.8]} 26. Qe5
{[%clk 0:01:18.9]} 26... Qc6 {[%clk 0:00:54.9]} 27. Nd4 {[%clk 0:01:11.4]} 27...
Qb7 {[%clk 0:00:55]} 28. Qf4 {[%clk 0:01:01.4]} 28... Ka7 {[%clk 0:00:41.7]} 29.
b3 {[%clk 0:00:53.5]} 29... R4c5 {[%clk 0:00:35.2]} 30. a4 {[%clk 0:00:47.8]}
30... b4 {[%clk 0:00:32.1]} 31. a5 {[%clk 0:00:28.6]} 31... Rg8 {[%clk
0:00:28.6]} 32. Qf3 {[%clk 0:00:27.7]} 32... Qc7 {[%clk 0:00:23.5]} 33. g3
{[%clk 0:00:26.1]} 33... Rc8 {[%clk 0:00:17.9]} 34. Kg2 {[%clk 0:00:25.5]} 34...
Rd5 {[%clk 0:00:16.1]} 35. h4 {[%clk 0:00:25.3]} 35... e5 {[%clk 0:00:12.1]} 36.
Nf5 {[%clk 0:00:20.2]} 36... Rc5 {[%clk 0:00:07.8]} 37. Qe4 {[%clk 0:00:17.7]}
37... Qd7 {[%clk 0:00:05]} 38. Ne7 {[%clk 0:00:16.3]} 38... R8c7 {[%clk
0:00:04.2]} 39. h5 {[%clk 0:00:14.4]} 39... Qe6 {[%clk 0:00:04.3]} 40. Qf3
{[%clk 0:00:13.3]} 40... e4 {[%clk 0:00:03.5]} 41. Qf4 {[%clk 0:00:13.2]} 41...
Rxe7 {[%clk 0:00:02.4]} 42. Bxe7 {[%clk 0:00:12.5]} 42... Qxe7 {[%clk
0:00:03.3]} 43. Rd1 {[%clk 0:00:12.6]} 43... Rxh5 {[%clk 0:00:02.6]} 44. Rd4
{[%clk 0:00:10.6]} 44... Rc5 {[%clk 0:00:02.5]} 45. Qxe4 {[%clk 0:00:09.8]}
45... Qxe4+ {[%clk 0:00:01.9]} 46. Rxe4 {[%clk 0:00:09.6]} 46... Rxa5 {[%clk
0:00:02.1]} 47. Rxb4 {[%clk 0:00:09.3]} 47... Rc5 {[%clk 0:00:02.5]} 48. Rf4
{[%clk 0:00:10]} 48... Rc3 {[%clk 0:00:02.6]} 49. Rxf7+ {[%clk 0:00:09.6]} 49...
Kb6 {[%clk 0:00:03.5]} 50. g4 {[%clk 0:00:09.7]} 50... Rxb3 {[%clk 0:00:03.6]}
51. g5 {[%clk 0:00:09.9]} 51... Rc3 {[%clk 0:00:03.3]} 52. g6 {[%clk 0:00:09.9]}
52... Rc6 {[%clk 0:00:04]} 53. g7 {[%clk 0:00:09.3]} 53... Rg6+ {[%clk
0:00:04.7]} 54. Kf3 {[%clk 0:00:09.6]} 54... a5 {[%clk 0:00:05.6]} 55. Ke4
{[%clk 0:00:08.9]} 55... Kb5 {[%clk 0:00:04.5]} 56. Kf5 {[%clk 0:00:08.2]} 56...
Rg2 {[%clk 0:00:03.8]} 57. Ke6 {[%clk 0:00:08.1]} 57... a4 {[%clk 0:00:03.5]}
58. Ke7 {[%clk 0:00:07.5]} 58... a3 {[%clk 0:00:03.6]} 59. Kf8 {[%clk
0:00:07.6]} 59... a2 {[%clk 0:00:03.7]} 60. Ra7 {[%clk 0:00:07.3]} 60... Rxf2+
{[%clk 0:00:04]} 61. Ke8 {[%clk 0:00:07.5]} 61... Rg2 {[%clk 0:00:04]} 62. e4
{[%clk 0:00:06.4]} 62... Rxg7 {[%clk 0:00:03.3]} 63. Rxa2 {[%clk 0:00:06.1]}
63... Kc5 {[%clk 0:00:03.5]} 64. Rd2 {[%clk 0:00:05.9]} 64... Rg4 {[%clk
0:00:02.6]} 65. e5 {[%clk 0:00:05.3]} 65... Re4 {[%clk 0:00:02.6]} 66. e6 {[%clk
0:00:04.9]} 66... Rxe6+ {[%clk 0:00:02.6]} 67. Kd7 {[%clk 0:00:05.5]} 67... Re1
{[%clk 0:00:03.4]} 68. Rc2+ {[%clk 0:00:05.6]} 68... Kb5 {[%clk 0:00:03.6]} 69.
Rb2+ {[%clk 0:00:05.9]} 69... Kc5 {[%clk 0:00:03.8]} 70. Rd2 {[%clk 0:00:06.2]}
70... Kb4 {[%clk 0:00:04.7]} 71. Rd6 {[%clk 0:00:06.2]} 71... Kc5 {[%clk
0:00:04.8]} 72. Rc6+ {[%clk 0:00:06.2]} 72... Kb5 {[%clk 0:00:05.3]} 73. Rd6
{[%clk 0:00:06.5]} 73... Rh1 {[%clk 0:00:05.5]} 74. Re6 {[%clk 0:00:06.5]} 74...
Kc5 {[%clk 0:00:04.9]} 75. Rc6+ {[%clk 0:00:06.1]} 75... Kd5 {[%clk 0:00:04.3]}
76. Rd6+ {[%clk 0:00:06.4]} 76... Kc5 {[%clk 0:00:04.4]} 77. Rc6+ {[%clk
0:00:06.7]} 77... Kb5 {[%clk 0:00:04.8]} 78. Rd6 {[%clk 0:00:06.7]} 78... Rh7+
{[%clk 0:00:04.7]} 79. Ke6 {[%clk 0:00:06.8]} 79... Kc5 {[%clk 0:00:05]} 80.
Rd5+ {[%clk 0:00:06.5]} 80... Kc4 {[%clk 0:00:05.4]} 81. Rd7 {[%clk 0:00:06.4]}
81... Rxd7 {[%clk 0:00:05.2]} 82. Kxd7 {[%clk 0:00:06.4]} 1/2-1/2

[Event "*** Titled Tuesday Blitz"]
[Site "Chess.com"]
[Date "2021.04.06"]
[Round "6"]
[White "KafkaesqueKnight"]
[Black "Kale36"]
[Result "1-0"]
[WhiteElo "2264"]
[BlackElo "2397"]
[TimeControl "180+1"]
[EndTime "11:10:18 PDT"]
[Termination "KafkaesqueKnight won on time"]

1. d4 {[%clk 0:02:59.3]} 1... Nc6 {[%clk 0:02:59.6]} 2. c4 {[%clk 0:02:59.3]}
2... e5 {[%clk 0:02:59.5]} 3. d5 {[%clk 0:02:59.4]} 3... Nce7 {[%clk 0:02:59.5]}
4. Nc3 {[%clk 0:02:54.5]} 4... Nf6 {[%clk 0:02:56.7]} 5. h4 {[%clk 0:02:51.8]}
5... h5 {[%clk 0:02:54.5]} 6. Nf3 {[%clk 0:02:50.2]} 6... Ng6 {[%clk 0:02:52.6]}
7. a3 {[%clk 0:02:47.3]} 7... d6 {[%clk 0:02:46.2]} 8. e3 {[%clk 0:02:37.6]}
8... Be7 {[%clk 0:02:44.3]} 9. Bd3 {[%clk 0:02:37.2]} 9... Ng4 {[%clk
0:02:29.4]} 10. Bxg6 {[%clk 0:02:04.7]} 10... fxg6 {[%clk 0:02:29.1]} 11. Qc2
{[%clk 0:02:05.1]} 11... Bf5 {[%clk 0:02:22.8]} 12. e4 {[%clk 0:02:05.4]} 12...
Bd7 {[%clk 0:02:22.5]} 13. Bg5 {[%clk 0:02:01.1]} 13... O-O {[%clk 0:02:18.1]}
14. O-O-O {[%clk 0:02:01.1]} 14... Nf6 {[%clk 0:02:07.2]} 15. Be3 {[%clk
0:01:52.7]} 15... Bg4 {[%clk 0:02:01.3]} 16. Ng5 {[%clk 0:01:52.2]} 16... Bxd1
{[%clk 0:01:42.8]} 17. Nxd1 {[%clk 0:01:45.2]} 17... Ng4 {[%clk 0:01:41.4]} 18.
Ne6 {[%clk 0:01:43.7]} 18... Qd7 {[%clk 0:01:40.9]} 19. Nxf8 {[%clk 0:01:22.4]}
19... Rxf8 {[%clk 0:01:41.8]} 20. f3 {[%clk 0:01:22.2]} 20... Nxe3 {[%clk
0:01:37.1]} 21. Nxe3 {[%clk 0:01:23.1]} 21... Qd8 {[%clk 0:01:32.1]} 22. Qf2
{[%clk 0:01:10.3]} 22... Rf4 {[%clk 0:01:15.2]} 23. Qg3 {[%clk 0:00:47.8]} 23...
Kh7 {[%clk 0:01:09]} 24. Kc2 {[%clk 0:00:42.8]} 24... a6 {[%clk 0:01:00.6]} 25.
b4 {[%clk 0:00:37]} 25... b5 {[%clk 0:00:56.2]} 26. cxb5 {[%clk 0:00:34.2]}
26... axb5 {[%clk 0:00:57.1]} 27. Kb3 {[%clk 0:00:31.8]} 27... Qa8 {[%clk
0:00:52.3]} 28. Rc1 {[%clk 0:00:22.4]} 28... Qa7 {[%clk 0:00:46.3]} 29. Qf2
{[%clk 0:00:19.5]} 29... Rf8 {[%clk 0:00:40.5]} 30. Nd1 {[%clk 0:00:14.6]} 30...
Qa4+ {[%clk 0:00:37.9]} 31. Kb2 {[%clk 0:00:13.6]} 31... Ra8 {[%clk 0:00:38.8]}
32. Rc3 {[%clk 0:00:12.8]} 32... Qa6 {[%clk 0:00:28.4]} 33. Qc2 {[%clk
0:00:11.8]} 33... Ra7 {[%clk 0:00:27.1]} 34. g3 {[%clk 0:00:11.4]} 34... Qb6
{[%clk 0:00:26.4]} 35. Qf2 {[%clk 0:00:10.7]} 35... Qb8 {[%clk 0:00:24.6]} 36.
Qe3 {[%clk 0:00:10.9]} 36... Ra8 {[%clk 0:00:19.8]} 37. Nf2 {[%clk 0:00:10.9]}
37... Qf8 {[%clk 0:00:19.3]} 38. Nd3 {[%clk 0:00:11.1]} 38... Qf7 {[%clk
0:00:18]} 39. Rxc7 {[%clk 0:00:10.5]} 39... Rf8 {[%clk 0:00:18.9]} 40. Ne1
{[%clk 0:00:09.5]} 40... Qf6 {[%clk 0:00:18.2]} 41. Rc6 {[%clk 0:00:09.2]} 41...
Qf7 {[%clk 0:00:14.3]} 42. Rc7 {[%clk 0:00:09.2]} 42... Qe8 {[%clk 0:00:15.1]}
43. Rb7 {[%clk 0:00:09]} 43... Qc8 {[%clk 0:00:13.9]} 44. Rxb5 {[%clk
0:00:09.1]} 44... Qc4 {[%clk 0:00:13.9]} 45. Qd3 {[%clk 0:00:08.5]} 45... Qc8
{[%clk 0:00:11.9]} 46. Qc3 {[%clk 0:00:08.1]} 46... Qh3 {[%clk 0:00:11.1]} 47.
Rb7 {[%clk 0:00:07.3]} 47... Rc8 {[%clk 0:00:10]} 48. Rc7 {[%clk 0:00:05.7]}
48... Rxc7 {[%clk 0:00:10.3]} 49. Qxc7 {[%clk 0:00:06.6]} 49... Qxg3 {[%clk
0:00:10.9]} 50. Nc2 {[%clk 0:00:05.3]} 50... Bxh4 {[%clk 0:00:10.3]} 51. Qxd6
{[%clk 0:00:05.4]} 51... Qxf3 {[%clk 0:00:09.7]} 52. b5 {[%clk 0:00:05.3]} 52...
Qe2 {[%clk 0:00:06.7]} 53. b6 {[%clk 0:00:05.4]} 53... Bf2 {[%clk 0:00:07.6]}
54. b7 {[%clk 0:00:05.3]} 54... Bd4+ {[%clk 0:00:08.4]} 55. Kb3 {[%clk
0:00:05.4]} 55... Qb5+ {[%clk 0:00:08.2]} 56. Qb4 {[%clk 0:00:05.9]} 56... Qd3+
{[%clk 0:00:07.8]} 57. Ka4 {[%clk 0:00:05]} 57... Qxc2+ {[%clk 0:00:07.8]} 58.
Kb5 {[%clk 0:00:04.2]} 58... Ba7 {[%clk 0:00:08.2]} 59. Ka6 {[%clk 0:00:03.7]}
59... Bb8 {[%clk 0:00:08.3]} 60. d6 {[%clk 0:00:03.4]} 60... Qe2+ {[%clk
0:00:08.3]} 61. Ka5 {[%clk 0:00:02.8]} 61... Qe3 {[%clk 0:00:07.9]} 62. d7
{[%clk 0:00:02.8]} 62... Qa7+ {[%clk 0:00:08.3]} 63. Kb5 {[%clk 0:00:02.7]}
63... Bc7 {[%clk 0:00:08.6]} 64. Kc6 {[%clk 0:00:02.6]} 64... Bd8 {[%clk
0:00:07.9]} 65. Kd6 {[%clk 0:00:02.6]} 65... Qb8+ {[%clk 0:00:07.3]} 66. Ke6
{[%clk 0:00:02.7]} 66... h4 {[%clk 0:00:07.8]} 67. Kf7 {[%clk 0:00:03.1]} 67...
h3 {[%clk 0:00:08.2]} 68. Qf8 {[%clk 0:00:03.6]} 68... Kh6 {[%clk 0:00:06]} 69.
Qxg7+ {[%clk 0:00:03.7]} 69... Kh5 {[%clk 0:00:06.5]} 70. Qh7+ {[%clk
0:00:03.5]} 70... Kg4 {[%clk 0:00:05.6]} 71. Qxg6+ {[%clk 0:00:04.4]} 71... Bg5
{[%clk 0:00:05]} 72. Qf5+ {[%clk 0:00:04.3]} 72... Kh5 {[%clk 0:00:04.8]} 73.
Qh7+ {[%clk 0:00:03.8]} 73... Kg4 {[%clk 0:00:04.8]} 74. Qf5+ {[%clk 0:00:04.7]}
74... Kh5 {[%clk 0:00:05]} 75. Qxh3+ {[%clk 0:00:05.2]} 75... Bh4 {[%clk
0:00:04.9]} 76. Qf5+ {[%clk 0:00:05.6]} 76... Bg5 {[%clk 0:00:05.3]} 77. Qe6
{[%clk 0:00:05.5]} 77... Qd8 {[%clk 0:00:04.3]} 78. Qg6+ {[%clk 0:00:05.2]}
78... Kg4 {[%clk 0:00:04.2]} 79. Qf5+ {[%clk 0:00:05.3]} 79... Kh5 {[%clk
0:00:03.8]} 80. Qe6 {[%clk 0:00:04.4]} 1-0

[Event "*** Titled Tuesday Blitz"]
[Site "Chess.com"]
[Date "2021.04.06"]
[Round "6"]
[White "Abund"]
[Black "StockholmMissile"]
[Result "0-1"]
[WhiteElo "2733"]
[BlackElo "2592"]
[TimeControl "180+1"]
[EndTime "11:10:21 PDT"]
[Termination "StockholmMissile won by resignation"]

1. e4 {[%clk 0:03:00.9]} 1... e5 {[%clk 0:02:58.6]} 2. Nf3 {[%clk 0:03:01]} 2...
Nc6 {[%clk 0:02:58.8]} 3. Bb5 {[%clk 0:03:01.1]} 3... a6 {[%clk 0:02:58.4]} 4.
Ba4 {[%clk 0:03:01.1]} 4... Nf6 {[%clk 0:02:58.3]} 5. d3 {[%clk 0:03:01.2]} 5...
b5 {[%clk 0:02:57.8]} 6. Bb3 {[%clk 0:03:01.6]} 6... Bc5 {[%clk 0:02:58.1]} 7.
a4 {[%clk 0:02:59.7]} 7... Rb8 {[%clk 0:02:54.4]} 8. axb5 {[%clk 0:02:59.3]}
8... axb5 {[%clk 0:02:54.2]} 9. O-O {[%clk 0:02:59.4]} 9... d6 {[%clk
0:02:53.9]} 10. h3 {[%clk 0:02:59.5]} 10... h6 {[%clk 0:02:51.4]} 11. Nc3 {[%clk
0:02:57.7]} 11... O-O {[%clk 0:02:50.3]} 12. Be3 {[%clk 0:02:54.5]} 12... Bb6
{[%clk 0:02:45.3]} 13. Qd2 {[%clk 0:02:47.2]} 13... Be6 {[%clk 0:02:40.5]} 14.
Nd5 {[%clk 0:02:29.7]} 14... Bxd5 {[%clk 0:02:36.6]} 15. exd5 {[%clk 0:02:12]}
15... Ne7 {[%clk 0:02:36.1]} 16. c4 {[%clk 0:01:53.6]} 16... Bxe3 {[%clk
0:02:09.9]} 17. Qxe3 {[%clk 0:01:47.5]} 17... Nf5 {[%clk 0:02:07.3]} 18. Qd2
{[%clk 0:01:31.8]} 18... bxc4 {[%clk 0:02:05.8]} 19. Bxc4 {[%clk 0:01:31.6]}
19... Nd7 {[%clk 0:02:04.5]} 20. Ra7 {[%clk 0:01:27.8]} 20... Nb6 {[%clk
0:01:51.7]} 21. Rc1 {[%clk 0:01:16]} 21... Re8 {[%clk 0:01:42.7]} 22. Bb5 {[%clk
0:01:14.1]} 22... Re7 {[%clk 0:01:38.7]} 23. Bc6 {[%clk 0:01:08.1]} 23... g5
{[%clk 0:00:58.9]} 24. Nh2 {[%clk 0:00:46.3]} 24... Kg7 {[%clk 0:00:54.2]} 25.
Nf3 {[%clk 0:00:45.6]} 25... f6 {[%clk 0:00:49.1]} 26. g4 {[%clk 0:00:40.4]}
26... Nd4 {[%clk 0:00:40.1]} 27. Nxd4 {[%clk 0:00:40]} 27... exd4 {[%clk
0:00:41]} 28. Re1 {[%clk 0:00:34.5]} 28... Re5 {[%clk 0:00:25.3]} 29. Re4 {[%clk
0:00:30.3]} 29... Nxd5 {[%clk 0:00:16.6]} 30. Bxd5 {[%clk 0:00:24.9]} 30... Rxd5
{[%clk 0:00:16.4]} 31. Qc2 {[%clk 0:00:18.1]} 31... Rc5 {[%clk 0:00:16]} 32. Qa4
{[%clk 0:00:18.3]} 32... Re5 {[%clk 0:00:13.2]} 33. Qxd4 {[%clk 0:00:15.7]}
33... Ra8 {[%clk 0:00:10.2]} 34. Rb7 {[%clk 0:00:11.5]} 34... Rb8 {[%clk
0:00:10.6]} 35. Qb4 {[%clk 0:00:11.2]} 35... Rxb7 {[%clk 0:00:10.3]} 36. Qxb7
{[%clk 0:00:11.9]} 36... Rxe4 {[%clk 0:00:09.5]} 37. dxe4 {[%clk 0:00:12.4]}
37... Qe7 {[%clk 0:00:09.3]} 38. b4 {[%clk 0:00:12.4]} 38... Kg6 {[%clk
0:00:08]} 39. b5 {[%clk 0:00:12.8]} 39... Qd8 {[%clk 0:00:08.2]} 40. Qd5 {[%clk
0:00:12.3]} 40... Qb8 {[%clk 0:00:06.4]} 41. Kg2 {[%clk 0:00:11.6]} 41... Kg7
{[%clk 0:00:06.6]} 42. Qc6 {[%clk 0:00:11.3]} 42... Qd8 {[%clk 0:00:04.5]} 43.
Kg3 {[%clk 0:00:11]} 43... Qe7 {[%clk 0:00:04.7]} 44. Kg2 {[%clk 0:00:09.1]}
44... Qd8 {[%clk 0:00:04.4]} 45. Kf3 {[%clk 0:00:08.7]} 45... Kf8 {[%clk
0:00:04.3]} 46. Qd5 {[%clk 0:00:08.9]} 46... Qd7 {[%clk 0:00:02.9]} 47. Kg2
{[%clk 0:00:08.2]} 47... Qe7 {[%clk 0:00:03.3]} 48. Qb7 {[%clk 0:00:08.1]} 48...
Kf7 {[%clk 0:00:02.8]} 49. h4 {[%clk 0:00:07.4]} 49... gxh4 {[%clk 0:00:02.4]}
50. Kh3 {[%clk 0:00:07.9]} 50... Kg6 {[%clk 0:00:02.8]} 51. f4 {[%clk
0:00:07.4]} 51... h5 {[%clk 0:00:02.1]} 52. gxh5+ {[%clk 0:00:07.4]} 52... Kxh5
{[%clk 0:00:02.3]} 53. Qd5+ {[%clk 0:00:08]} 53... Kh6 {[%clk 0:00:02.5]} 54.
Qf5 {[%clk 0:00:07.6]} 54... Kg7 {[%clk 0:00:02.3]} 55. Kxh4 {[%clk 0:00:07.6]}
55... Qe8 {[%clk 0:00:02.6]} 56. Kg4 {[%clk 0:00:06.4]} 56... Qg6+ {[%clk
0:00:02]} 57. Kf3 {[%clk 0:00:04.7]} 57... Qxf5 {[%clk 0:00:01.9]} 58. exf5
{[%clk 0:00:05.6]} 58... Kf7 {[%clk 0:00:02.5]} 59. Ke4 {[%clk 0:00:06]} 59...
Ke7 {[%clk 0:00:03]} 60. Kd4 {[%clk 0:00:06.3]} 60... Kd8 {[%clk 0:00:02.2]} 61.
Kc4 {[%clk 0:00:06.5]} 61... Kc8 {[%clk 0:00:02.5]} 62. Kd5 {[%clk 0:00:07]}
62... Kd7 {[%clk 0:00:02.7]} 63. Kd4 {[%clk 0:00:06.7]} 63... c6 {[%clk
0:00:03.5]} 64. Kc4 {[%clk 0:00:04.8]} 64... Kc7 {[%clk 0:00:03.7]} 65. Kb4
{[%clk 0:00:04.1]} 65... Kb6 {[%clk 0:00:03.9]} 66. bxc6 {[%clk 0:00:04.5]}
66... Kxc6 {[%clk 0:00:04.8]} 67. Kc4 {[%clk 0:00:05.2]} 67... d5+ {[%clk
0:00:05.3]} 68. Kd4 {[%clk 0:00:04.9]} 68... Kd6 {[%clk 0:00:05.7]} 69. Kd3
{[%clk 0:00:05.3]} 69... Kc5 {[%clk 0:00:05.9]} 70. Kc3 {[%clk 0:00:06]} 70...
d4+ {[%clk 0:00:06.8]} 71. Kd3 {[%clk 0:00:06.5]} 71... Kd5 {[%clk 0:00:07.4]}
72. Kd2 {[%clk 0:00:05.5]} 72... Ke4 {[%clk 0:00:08.3]} 73. Ke2 {[%clk
0:00:05.8]} 73... Kxf4 {[%clk 0:00:08.3]} 74. Kd3 {[%clk 0:00:06.5]} 74... Ke5
{[%clk 0:00:08.6]} 75. Kc4 {[%clk 0:00:06.7]} 75... Ke4 {[%clk 0:00:08.9]} 76.
Kc5 {[%clk 0:00:07.2]} 76... d3 {[%clk 0:00:09.1]} 77. Kd6 {[%clk 0:00:07.6]}
77... Kxf5 {[%clk 0:00:09.1]} 78. Kd5 {[%clk 0:00:08]} 78... d2 {[%clk 0:00:10]}
79. Kc5 {[%clk 0:00:08.6]} 79... d1=Q {[%clk 0:00:10.9]} 80. Kb6 {[%clk
0:00:08.8]} 80... Ke4 {[%clk 0:00:11.7]} 81. Ka7 {[%clk 0:00:09.7]} 81... f5
{[%clk 0:00:12.4]} 82. Kb8 {[%clk 0:00:10.6]} 82... f4 {[%clk 0:00:13.3]} 83.
Kb7 {[%clk 0:00:09.7]} 83... f3 {[%clk 0:00:14.2]} 0-1